fUST/lending_fUST_20251030
["ID","MTS","AMOUNT","RATE_DAILY","PERIOD"]
[392665896,1761798640467,-500.0,0.00027397,2]
[392665897,1761798640476,-502.2422879,0.00027397,2]
[392665898,1761798640485,-559.88517901,0.00027397,2]
[392665899,1761798640495,-500.0,0.00027397,2]
[392665900,1761798640504,-502.10348007,0.00027397,2]
[392665901,1761798640513,-501.13909869,0.00027397,2]
[392665902,1761798640523,-503.28672961,0.00027397,2]
[392665903,1761798640533,-501.26302883,0.00027397,2]
[392665904,1761798640542,-503.01728493,0.00027397,2]
[392665905,1761798640551,-500.0,0.00027397,2]
[392665906,1761798640560,-502.30726083,0.00027397,2]
[392665907,1761798640569,-332.12149719,0.00027397,2]
[392665908,1761798640578,-503.57479328,0.00027397,2]
[392665909,1761798640587,-584.7802437,0.00027397,2]
[392665910,1761798640596,-502.05129052,0.00027397,2]
[392665911,1761798640606,-500.0,0.00027397,2]
[392665912,1761798640616,-501.45083525,0.00027397,2]
[392665913,1761798640626,-501.37784925,0.00027397,2]
[392665914,1761798640636,-502.01678651,0.00027397,2]
[392665915,1761798640647,-582.92427721,0.00027397,2]
[392665916,1761798640656,-504.02280515,0.00027397,2]
[392665917,1761798640666,-502.77825481,0.00027397,2]
[392665918,1761798640675,-504.00845131,0.00027397,2]
[392665919,1761798640689,-502.11665698,0.00027397,2]
[392665920,1761798640698,-217.68191883,0.00027397,2]
[392665921,1761798640707,-631.56921314,0.00027397,2]
[392665922,1761798640716,-500.0,0.00027397,2]
[392665923,1761798640726,-501.58779247,0.00027397,2]
[392665924,1761798640735,-501.23968659,0.00027397,2]
[392665925,1761798640745,-603.75107576,0.00027397,2]
[392665926,1761798640754,-584.90460552,0.00027397,2]
[392665927,1761798640763,-500.0,0.00027397,2]
[392665928,1761798640772,-502.44244684,0.00027397,2]
[392665929,1761798640781,-500.0,0.00027397,2]
[392665930,1761798640792,-503.78175076,0.00027397,2]
[392665931,1761798640801,-501.14603129,0.00027397,2]
[392665932,1761798640811,-502.82586155,0.00027397,2]
[392665933,1761798640820,-501.66509437,0.00027397,2]
[392665934,1761798640830,-501.93576729,0.00027397,2]
[392665935,1761798640839,-500.0,0.00027397,2]
[392665936,1761798640853,-502.30995226,0.00027397,2]
[392665937,1761798640863,-550.71224387,0.00027397,2]
[392665938,1761798640872,-502.31933524,0.00027397,2]
[392665939,1761798640881,-506.3704957,0.00027397,2]
[392665940,1761798640891,-501.20585993,0.00027397,2]
[392665941,1761798640901,-502.52722636,0.00027397,2]
[392665942,1761798640910,-500.0,0.00027397,2]
[392665943,1761798640919,-501.07621066,0.00027397,2]
[392665944,1761798640929,-502.54288145,0.00027397,2]
[392665945,1761798640942,-1003.86273094,0.00027397,2]
[392665946,1761798640952,-501.12578823,0.00027397,2]
[392665947,1761798640962,-501.96272166,0.00027397,2]
[392665948,1761798640972,-502.51592251,0.00027397,2]
[392665949,1761798640982,-503.95543681,0.00027397,2]
[392665950,1761798640991,-501.9272975,0.00027397,2]
[392665951,1761798641001,-587.18259957,0.00027397,2]
[392665952,1761798641010,-500.0,0.00027397,2]
[392665953,1761798641020,-501.29796893,0.00027397,2]
[392665954,1761798641030,-260.18949075,0.00027397,2]
[392665955,1761798641039,-507.284416,0.00027397,2]
[392665956,1761798641048,-491.01285708,0.00027397,2]
[392665957,1761798641058,-502.44891898,0.00027397,2]
[392665958,1761798641068,-501.09922787,0.00027397,2]
[392665959,1761798641078,-500.0,0.00027397,2]
[392665960,1761798641087,-503.62365605,0.00027397,2]
[392665961,1761798641096,-500.0,0.00027397,2]
[392665962,1761798641105,-501.67089453,0.00027397,2]
[392665963,1761798641113,-502.82848886,0.00027397,2]
[392665964,1761798641123,-500.0,0.00027397,2]
[392665965,1761798641131,-502.2933509,0.00027397,2]
[392665966,1761798641140,-500.0,0.00027397,2]
[392665967,1761798641150,-500.0,0.00027397,2]
[392665968,1761798641159,-502.442429,0.00027397,2]
[392665969,1761798641168,-500.50418474,0.00027397,2]
[392665970,1761798641178,-500.0,0.00027397,2]
[392665971,1761798641192,-501.93490941,0.00027397,2]
[392665972,1761798641202,-500.0,0.00027397,2]
[392665973,1761798641211,-502.05758052,0.00027397,2]
[392665974,1761798641220,-507.18805131,0.00027397,2]
[392665975,1761798641230,-500.0,0.00027397,2]
[392665976,1761798641240,-500.53395238,0.00027397,2]
[392665977,1761798641249,-501.17674015,0.00027397,2]
[392665978,1761798641259,-501.7934327,0.00027397,2]
[392665979,1761798641268,-503.16208389,0.00027397,2]
[392665980,1761798641277,-500.67510398,0.00027397,2]
[392665981,1761798641286,-628.66827582,0.00027397,2]
[392665982,1761798641295,-500.0,0.00027397,2]
[392665983,1761798641304,-588.83754325,0.00027397,2]
[392665984,1761798641313,-610.26,0.00027397,2]
[392665985,1761798641322,-500.0,0.00027397,2]
[392665986,1761798641331,-500.0,0.00027397,2]
[392665987,1761798641341,-503.01735761,0.00027397,2]
[392665988,1761798641351,-155.44512465,0.00027397,2]
[392665989,1761798641360,-242.88322513,0.00027397,2]
[392665990,1761798641369,-503.81384019,0.00027397,2]
[392665991,1761798641378,-500.0,0.00027397,2]
[392665992,1761798641387,-500.0,0.00027397,2]
[392665993,1761798641396,-500.99659507,0.00027397,2]
[392665994,1761798641405,-500.0,0.00027397,2]
[392665995,1761798641414,-500.0,0.00027397,2]
[392665996,1761798641424,-501.38297035,0.00027397,2]
[392665997,1761798641433,-501.98753523,0.00027397,2]
[392665998,1761798641447,-501.31001277,0.00027397,2]
[392665999,1761798641456,-500.0,0.00027397,2]
[392666000,1761798641465,-501.22084905,0.00027397,2]
[392666001,1761798641475,-500.0,0.00027397,2]
[392666002,1761798641483,-501.04633686,0.00027397,2]
[392666003,1761798641492,-501.72164328,0.00027397,2]
[392666004,1761798641502,-500.0,0.00027397,2]
[392666005,1761798641511,-522.48301244,0.00027397,2]
[392666006,1761798641520,-500.88340584,0.00027397,2]
[392666007,1761798641532,-500.0,0.00027397,2]
[392666008,1761798641544,-503.2365485,0.00027397,2]
[392666009,1761798641555,-502.5109894,0.00027397,2]
[392666010,1761798641567,-500.0,0.00027397,2]
[392666011,1761798641579,-500.0,0.00027397,2]
[392666012,1761798641590,-500.0,0.00027397,2]
[392666013,1761798641603,-501.15626737,0.00027397,2]
[392666014,1761798641614,-500.0,0.00027397,2]
[392666015,1761798641624,-500.0,0.00027397,2]
[392666016,1761798641635,-500.0,0.00027397,2]
[392666017,1761798641647,-501.47339732,0.00027397,2]
[392666018,1761798641657,-500.0,0.00027397,2]
[392666019,1761798641668,-516.40794826,0.00027397,2]
[392666020,1761798641679,-500.0,0.00027397,2]
[392666021,1761798641694,-500.0,0.00027397,2]
[392666022,1761798641706,-500.0,0.00027397,2]
[392666023,1761798641717,-501.61375793,0.00027397,2]
[392666024,1761798641727,-500.79166254,0.00027397,2]
[392666025,1761798641739,-500.60848386,0.00027397,2]
[392666026,1761798641749,-501.20086913,0.00027397,2]
[392666027,1761798641759,-502.80182128,0.00027397,2]
[392666028,1761798641770,-501.36079583,0.00027397,2]
[392666029,1761798641781,-576.44189069,0.00027397,2]
[392666030,1761798641793,-500.0,0.00027397,2]
[392666031,1761798641805,-500.0,0.00027397,2]
[392666032,1761798641817,-500.0,0.00027397,2]
[392666033,1761798641828,-500.89894956,0.00027397,2]
[392666034,1761798641838,-501.23724872,0.00027397,2]
[392666035,1761798641853,-500.0,0.00027397,2]
[392666036,1761798641863,-500.0,0.00027397,2]
[392666037,1761798641875,-503.10633022,0.00027397,2]
[392666038,1761798641887,-502.30491761,0.00027397,2]
[392666039,1761798641898,-500.0,0.00027397,2]
[392666040,1761798641909,-537.35437046,0.00027397,2]
[392666041,1761798641920,-500.0,0.00027397,2]
[392666042,1761798641931,-500.0,0.00027397,2]
[392666043,1761798641948,-500.69611801,0.00027397,2]
[392666044,1761798641960,-502.63395538,0.00027397,2]
[392666045,1761798641972,-502.79529018,0.00027397,2]
[392666046,1761798641982,-455.81327146,0.00027397,2]
[392666047,1761798641992,-500.0,0.00027397,2]
[392666048,1761798642004,-503.74363078,0.00027397,2]
[392666049,1761798642014,-500.0,0.00027397,2]
[392666050,1761798642024,-501.70927809,0.00027397,2]
[392666051,1761798642034,-503.5906992,0.00027397,2]
[392666052,1761798642043,-502.9239104,0.00027397,2]
[392666053,1761798642054,-502.13651427,0.00027397,2]
[392666054,1761798642065,-501.76229016,0.00027397,2]
[392666055,1761798642075,-507.64029188,0.00027397,2]
[392666056,1761798642085,-503.03458475,0.00027397,2]
[392666057,1761798642095,-500.00000001,0.00027397,2]
[392666058,1761798642106,-500.0,0.00027397,2]
[392666059,1761798642116,-500.0,0.00027397,2]
[392666060,1761798642127,-502.53970403,0.00027397,2]
[392666061,1761798642138,-501.04921659,0.00027397,2]
[392666062,1761798642148,-500.0,0.00027397,2]
[392666063,1761798642158,-443.21832471,0.00027397,2]
[392666064,1761798642168,-500.0,0.00027397,2]
[392666065,1761798642179,-500.0,0.00027397,2]
[392666066,1761798642196,-509.95333935,0.00027397,2]
[392666067,1761798642207,-503.48177903,0.00027397,2]
[392666068,1761798642218,-500.0,0.00027397,2]
[392666069,1761798642230,-502.95851757,0.00027397,2]
[392666070,1761798642241,-501.28311476,0.00027397,2]
[392666071,1761798642253,-504.37107631,0.00027397,2]
[392666072,1761798642262,-501.43669119,0.00027397,2]
[392666073,1761798642272,-500.99904996,0.00027397,2]
[392666074,1761798642283,-502.13817711,0.00027397,2]
[392666075,1761798642293,-502.38385195,0.00027397,2]
[392666076,1761798642303,-500.0,0.00027397,2]
[392666077,1761798642313,-500.0,0.00027397,2]
[392666078,1761798642324,-500.0,0.00027397,2]
[392666079,1761798642335,-500.0,0.00027397,2]
[392666080,1761798642346,-501.39472265,0.00027397,2]
[392666081,1761798642356,-502.41882149,0.00027397,2]
[392666082,1761798642369,-545.18818793,0.00027397,2]
[392666083,1761798642379,-588.963478,0.00027397,2]
[392666085,1761798642404,-500.0,0.00027397,2]
[392666087,1761798642416,-320.96367835,0.00027397,2]
[392666089,1761798642426,-503.98760531,0.00027397,2]
[392666092,1761798642443,-630.07456042,0.00027397,2]
[392666095,1761798642456,-500.0,0.00027397,2]
[392666098,1761798642467,-500.0,0.00027397,2]
[392666102,1761798642479,-574.40014571,0.00027397,2]
[392666105,1761798642490,-522.60560452,0.00027397,2]
[392666107,1761798642503,-500.0,0.00027397,2]
[392666110,1761798642518,-500.0,0.00027397,2]
[392666112,1761798642528,-500.0,0.00027397,2]
[392666114,1761798642539,-501.69712775,0.00027397,2]
[392666117,1761798642549,-607.3465,0.00027397,2]
[392666119,1761798642559,-500.0,0.00027397,2]
[392666121,1761798642569,-500.0,0.00027397,2]
[392666125,1761798642580,-237.568224,0.00027397,7]
[392666127,1761798642590,-512.57341018,0.00027397,2]
[392666129,1761798642600,-500.0,0.00027397,2]
[392666131,1761798642611,-500.0,0.00027397,2]
[392666133,1761798642623,-500.0,0.00027397,2]
[392666135,1761798642634,-500.0,0.00027397,2]
[392666139,1761798642646,-500.0,0.00027397,2]
[392666141,1761798642657,-500.0,0.00027397,2]
[392666143,1761798642668,-500.0,0.00027397,2]
[392666145,1761798642679,-500.0,0.00027397,2]
[392666147,1761798642696,-500.0,0.00027397,2]
[392666149,1761798642707,-500.0,0.00027397,2]
[392666152,1761798642718,-500.0,0.00027397,2]
[392666155,1761798642729,-500.0,0.00027397,2]
[392666157,1761798642740,-500.0,0.00027397,2]
[392666159,1761798642751,-615.9,0.00027397,2]
[392666162,1761798642761,-500.0,0.00027397,2]
[392666164,1761798642771,-300.0,0.000274,2]
[392666167,1761798642783,-348.54796147,0.00027493,2]
[392666170,1761798642802,-1143.76047934,0.00027493,2]
[392666173,1761798642813,-299.38273117,0.00027661,2]
[392666175,1761798642824,-200.09796422,0.00027671,4]
[392666177,1761798642835,-500.0,0.00027671,4]
[392666179,1761798642851,-500.0,0.00027671,4]
[392666182,1761798642862,-592.75794845,0.00027671,4]
[392666185,1761798642872,-500.0,0.00027671,4]
[392666187,1761798642883,-433.66,0.00027671,4]
[392666188,1761798642893,-455.33,0.00027671,4]
[392666189,1761798642904,-525.32,0.00027671,4]
[392666190,1761798642915,-504.29,0.00027671,4]
[392666191,1761798642925,-391.3,0.00027671,4]
[392666192,1761798642938,-612.71,0.00027671,4]
[392666193,1761798642950,-223.27,0.00027671,4]
[392666194,1761798642961,-177.62,0.00027671,4]
[392666195,1761798642972,-239.24,0.00027671,4]
[392666196,1761798642982,-500.0,0.00027671,4]
[392666197,1761798642993,-235.32,0.00027671,4]
[392666198,1761798643004,-500.0,0.00027671,4]
[392666199,1761798643015,-199.56,0.00027671,4]
[392666200,1761798643026,-245.78,0.00027671,4]
[392666201,1761798643037,-500.0,0.00027671,4]
[392666202,1761798643047,-167.88514141,0.00027671,4]
[392666209,1761798643200,-500.0,0.00027671,4]
[392666210,1761798643214,-500.0,0.00027671,4]
[392666211,1761798643224,-500.0,0.00027671,4]
[392666212,1761798643233,-500.0,0.00027671,4]
[392666213,1761798643243,-500.0,0.00027671,4]
[392666214,1761798643253,-500.0,0.00027671,4]
[392666215,1761798643262,-28.56286175,0.00027671,4]
[392666216,1761798643275,-471.43713825,0.00027671,4]
[392666217,1761798643285,-484.72,0.00027671,4]
[392666218,1761798643294,-337.41,0.00027671,4]
[392666219,1761798643304,-343.46,0.00027671,4]
[392666220,1761798643314,-408.78,0.00027671,4]
[392666221,1761798643325,-500.0,0.00027671,4]
[392666222,1761798643334,-500.0,0.00027671,4]
[392666223,1761798643344,-205.34,0.00027671,4]
[392666224,1761798643354,-500.0,0.00027671,4]
[392666225,1761798643364,-628.51,0.00027671,4]
[392666226,1761798643373,-606.7886744,0.00027671,4]
[392666227,1761798643382,-172.29287514,0.00027671,4]
[392666228,1761798643395,-244.10084126,0.00027671,4]
[392666229,1761798643405,-327.57084907,0.00027671,4]
[392666230,1761798643414,-500.0,0.00027671,4]
[392666231,1761798643423,-500.0,0.00027671,4]
[392666232,1761798643432,-545.50379081,0.00027671,4]
[392666233,1761798643448,-383.69,0.00027671,4]
[392666234,1761798643458,-176.74,0.00027671,4]
[392666235,1761798643467,-482.03195635,0.00027671,4]
[392666236,1761798643477,-362.07,0.00027671,4]
[392666237,1761798643487,-278.14550875,0.00027671,4]
[392666238,1761798643497,-181.85511487,0.00027671,4]
[392666239,1761798643506,-350.58067355,0.00027671,4]
[392666240,1761798643516,-500.0,0.00027671,4]
[392666241,1761798643525,-500.0,0.00027671,4]
[392666242,1761798643535,-423.71,0.00027671,4]
[392666243,1761798643545,-192.935286,0.00027671,4]
[392666244,1761798643555,-500.0,0.00027671,4]
[392666245,1761798643566,-193.18,0.00027671,4]
[392666246,1761798643576,-500.0,0.00027671,2]
[392666247,1761798643586,-341.05324883,0.00027671,4]
[392666248,1761798643595,-166.72597665,0.00027671,4]
[392666249,1761798643604,-404.15243772,0.00027671,4]
[392666250,1761798643613,-547.30981854,0.00027671,4]
[392666251,1761798643623,-500.0,0.00027671,4]
[392666252,1761798643633,-371.06125462,0.00027671,4]
[392666253,1761798643643,-500.0,0.00027671,4]
[392666254,1761798643652,-180.28795858,0.00027671,4]
[392666255,1761798643663,-500.0,0.00027671,4]
[392666256,1761798643672,-447.62,0.00027671,4]
[392666257,1761798643681,-575.9002565,0.00027671,4]
[392666258,1761798643694,-500.0,0.00027671,4]
[392666259,1761798643703,-500.0,0.00027671,4]
[392666260,1761798643712,-500.0,0.00027671,4]
[392666261,1761798643722,-500.0,0.00027671,4]
[392666262,1761798643731,-500.0,0.00027671,4]
[392666263,1761798643741,-336.0136389,0.00027671,4]
[392666264,1761798643750,-565.73557666,0.00027671,4]
[392666265,1761798643763,-39.23556571,0.00027671,4]
[392666266,1761798643772,-500.0,0.00027671,4]
[392666267,1761798643782,-500.0,0.00027671,4]
[392666268,1761798643791,-90.62644877,0.00027671,4]
[392666269,1761798643802,-409.37355123,0.00027671,4]
[392666270,1761798643812,-500.0,0.00027671,4]
[392666271,1761798643821,-216.87714397,0.00027671,4]
[392666272,1761798643831,-500.0,0.00027671,4]
[392666273,1761798643845,-447.15810597,0.00027671,4]
[392666274,1761798643854,-152.32226148,0.00027671,4]
[392666275,1761798643864,-384.58573556,0.00027671,4]
[392666276,1761798643873,-509.18145991,0.00027671,4]
[392666277,1761798643883,-500.0,0.00027671,4]
[392666278,1761798643893,-464.5937604,0.00027671,4]
[392666279,1761798643902,-500.0,0.00027671,4]
[392666280,1761798643912,-516.66448877,0.00027671,4]
[392666281,1761798643921,-500.0,0.00027671,4]
[392666282,1761798643931,-521.66974474,0.00027671,4]
[392666283,1761798643945,-500.0,0.00027671,4]
[392666284,1761798643955,-500.0,0.00027671,4]
[392666285,1761798643964,-500.0,0.00027671,4]
[392666286,1761798643973,-566.70648582,0.00027671,4]
[392666287,1761798643982,-503.29287235,0.00027673,5]
[392666288,1761798643992,-500.0,0.00027673,5]
[392666289,1761798644001,-501.38501607,0.00027673,5]
[392666290,1761798644010,-259.6328975,0.00027699,2]
[392666291,1761798644020,-4004.98272862,0.00027798,2]
[392666292,1761798644030,-508.263,0.00027887,18]
[392666293,1761798644039,-1000.0,0.00027921,5]
[392666294,1761798644048,-299.38273117,0.00027935,2]
[392666295,1761798644058,-168.93,0.00027945,4]
[392666296,1761798644068,-336.44,0.00027945,4]
[392666297,1761798644077,-474.78,0.00027945,4]
[392666298,1761798644086,-500.0,0.00027945,4]
[392666299,1761798644096,-500.0,0.00027945,4]
[392666300,1761798644105,-185.74221404,0.00027945,4]
[392666301,1761798644114,-467.55349885,0.00027945,4]
[392666302,1761798644190,-500.0,0.00027397,2]
[392666303,1761798644199,-32.44650115,0.00027945,4]
[392666304,1761798644208,-181.26057937,0.00027945,4]
[392666305,1761798644219,-318.73942063,0.00027945,4]
[392666306,1761798644228,-500.0,0.00027945,4]
[392666307,1761798644237,-278.52378724,0.00027945,4]
[392666308,1761798644249,-221.47621276,0.00027945,4]
[392666309,1761798644258,-299.82,0.00027945,4]
[392666310,1761798644268,-223.39,0.00027945,4]
[392666311,1761798644277,-500.0,0.00027945,4]
[392666312,1761798644286,-500.0,0.00027945,4]
[392666313,1761798644296,-500.0,0.00027945,4]
[392666314,1761798644308,-491.79461688,0.00027945,4]
[392666315,1761798644321,-8.20538312,0.00027945,4]
[392666316,1761798644330,-499.71093071,0.00027945,4]
[392666317,1761798644339,-500.0,0.00027945,4]
[392666318,1761798644348,-500.0,0.00027945,4]
[392666319,1761798644357,-372.22,0.00027945,4]
[392666320,1761798644367,-259.95,0.00027945,4]
[392666321,1761798644376,-500.0,0.00027945,2]
[392666322,1761798644386,-500.0,0.00027945,4]
[392666323,1761798644396,-237.93,0.00027945,4]
[392666324,1761798644406,-500.0,0.00027945,4]
[392666325,1761798644415,-359.00307403,0.00027945,4]
[392666326,1761798644425,-500.0,0.00027945,4]
[392666327,1761798644436,-362.99602697,0.00027945,4]
[392666328,1761798644447,-500.0,0.00027945,4]
[392666329,1761798644456,-500.0,0.00027945,4]
[392666330,1761798644465,-390.05871105,0.00027945,4]
[392666331,1761798644475,-288.41957769,0.00027945,4]
[392666332,1761798644484,-500.0,0.00027945,4]
[392666333,1761798644493,-643.70086282,0.00027945,4]
[392666334,1761798644503,-500.0,0.00027945,4]
[392666335,1761798644512,-332.91878212,0.00027945,4]
[392666336,1761798644522,-500.0,0.00027945,4]
[392666337,1761798644531,-89.93602262,0.00027945,4]
[392666338,1761798644543,-112.26397738,0.00027945,4]
[392666339,1761798644553,-419.44602262,0.00027945,4]
[392666340,1761798644564,-80.55397738,0.00027945,4]
[392666341,1761798644574,-420.0,0.00028137,2]
[392666342,1761798644584,-328.72619518,0.00028219,4]
[392666343,1761798644595,-171.27380482,0.00028219,4]
[392666344,1761798644605,-500.0,0.00028219,4]
[392666345,1761798644614,-500.0,0.00028219,4]
[392666346,1761798644624,-500.0,0.00028219,4]
[392666347,1761798644633,-324.88,0.00028219,4]
[392666348,1761798644642,-500.0,0.00028219,4]
[392666349,1761798644652,-251.700669,0.00028219,15]
[392666350,1761798644662,-96.64420475,0.00028219,4]
[392666351,1761798644673,-403.35579525,0.00028219,4]
[392666352,1761798644683,-500.0,0.00028219,4]
[392666353,1761798644696,-500.0,0.00028219,4]
[392666354,1761798644707,-293.82529324,0.00028219,4]
[392666355,1761798644716,-265.10621208,0.00028219,4]
[392666356,1761798644725,-166.45,0.00028219,4]
[392666357,1761798644734,-500.0,0.00028219,2]
[392666358,1761798644744,-500.0,0.00028219,4]
[392666359,1761798644753,-500.0,0.00028219,4]
[392666360,1761798644763,-500.0,0.00028219,4]
[392666361,1761798644771,-500.0,0.00028219,4]
[392666362,1761798644780,-500.0,0.00028219,4]
[392666363,1761798644790,-589.09282794,0.00028219,4]
[392666364,1761798644800,-406.94530018,0.00028219,4]
[392666365,1761798644809,-500.0,0.00028219,4]
[392666366,1761798644819,-500.0,0.00028219,4]
[392666367,1761798644828,-500.0,0.00028221,5]
[392666368,1761798644838,-2062.63176497,0.00028241,2]
[392666369,1761798644850,-4004.98272862,0.00028299,2]
[392666370,1761798644860,-1500.0,0.00028468,5]
[392666371,1761798644869,-196.43376545,0.00028493,4]
[392666372,1761798644878,-360.49611814,0.00028493,4]
[392666373,1761798644888,-500.0,0.00028493,4]
[392666374,1761798644897,-420.89,0.00028493,4]
[392666375,1761798644908,-154.00145053,0.00028493,4]
[392666376,1761798644917,-500.0,0.00028493,4]
[392666377,1761798644927,-552.97,0.00028493,4]
[392666378,1761798644939,-218.79914357,0.00028493,4]
[392666379,1761798644948,-500.0,0.00028493,2]
[392666380,1761798644958,-285.14,0.00028493,4]
[392666381,1761798644968,-500.0,0.00028493,4]
[392666382,1761798644978,-500.0,0.00028493,4]
[392666383,1761798644988,-500.0,0.00028493,4]
[392666384,1761798644998,-410.59990679,0.00028493,4]
[392666385,1761798645008,-500.0,0.00028493,4]
[392666386,1761798645017,-500.0,0.00028493,4]
[392666387,1761798645027,-2062.63176497,0.00028521,2]
[392666388,1761798645036,-151.0,0.00028601,4]
[392666389,1761798645045,-6507.050512,0.00028737,2]
[392666390,1761798645054,-210.50248465,0.00028767,4]
[392666391,1761798645063,-542.55,0.00028767,4]
[392666392,1761798645072,-269.26,0.00028767,2]
[392666393,1761798645082,-500.0,0.00028767,4]
[392666394,1761798645090,-500.0,0.00028767,4]
[392666395,1761798645099,-500.0,0.00028767,4]
[392666396,1761798645108,-573.96084175,0.00028767,4]
[392666397,1761798645122,-500.0,0.00028767,4]
[392666398,1761798645131,-4004.98272862,0.00028799,2]
[392666399,1761798645141,-548.74467569,0.00028807,2]
[392666400,1761798645150,-163.341324,0.00028812,2]
[392666401,1761798645160,-2062.63176497,0.00028947,2]
[392666402,1761798645169,-299.38273117,0.0002898,2]
[392666403,1761798645179,-150.0,0.00028993,30]
[392666404,1761798645189,-153.0,0.00029011,2]
[392666405,1761798645199,-241.87844937,0.00029016,5]
[392666406,1761798645210,-313.09,0.00029041,4]
[392666407,1761798645219,-649.64678609,0.00029041,4]
[392666408,1761798645228,-500.0,0.00029041,4]
[392666409,1761798645239,-500.0,0.00029041,4]
[392666410,1761798645248,-2062.63176497,0.00029195,2]
[392666411,1761798645257,-196.0,0.00029202,2]
[392666412,1761798645266,-299.38273117,0.0002929,2]
[392666413,1761798645275,-4004.98272862,0.000293,2]
[392666414,1761798645284,-179.71463627,0.000293,2]
[392666415,1761798645294,-500.0,0.00029315,4]
[392666416,1761798645303,-500.0,0.00029315,4]
[392666417,1761798645312,-151.0,0.00029351,5]
[392666418,1761798645322,-3891.97550521,0.00029383,2]
[392666419,1761798645332,-254049.80552055,0.00029393,2]
[392666421,1761798645350,-500.0,0.00027397,2]
[392666422,1761798645359,-8764.50000005,0.00029393,2]
[392666423,1761798645370,-125000.00017688,0.00029393,2]
[392666464,1761798645957,-500.0,0.00027397,2]
[392666465,1761798645967,-500.0,0.00027397,2]
[392666466,1761798645976,-235.37,0.00027671,4]
[392666467,1761798645985,-1339.49089171,0.0002899,2]
[392666468,1761798645995,-372.5,0.00029383,10]
[392666469,1761798646004,-297185.69430252,0.00029393,2]
[392666470,1761798646014,-813.48,0.000294,2]
[392666471,1761798646024,-1451.9192228,0.00029413,2]
[392666472,1761798646033,-170.17668981,0.00029439,30]
[392666473,1761798646043,-196.0,0.00029442,2]
[392666474,1761798646052,-196.0,0.00029486,2]
[392666475,1761798646062,-3096.2186614,0.00029493,2]
[392666476,1761798646071,-2062.63176497,0.00029513,2]
[392666477,1761798646081,-500.0,0.00029589,4]
[392666478,1761798646091,-500.0,0.00029589,4]
[392666479,1761798646101,-1452.68944925,0.00029601,2]
[392666480,1761798646110,-196.0,0.00029611,7]
[392666481,1761798646119,-196.0,0.00029697,7]
[392666482,1761798646129,-2062.63176497,0.00029816,2]
[392666483,1761798646138,-536.85017798,0.00029845,2]
[392666484,1761798646147,-500.0,0.00029863,4]
[392666485,1761798646158,-500.0,0.00029863,4]
[392666487,1761798646167,-661.62679652,0.0002987,2]
[392666488,1761798646176,-800.0,0.00029889,2]
[392666489,1761798646186,-163.341324,0.0002989,10]
[392666490,1761798646198,-403.80339554,0.00029893,2]
[392666491,1761798646208,-800.0,0.00029906,2]
[392666492,1761798646217,-196.0,0.00029918,7]
[392666493,1761798646226,-303.07947686,0.0002993,2]
[392666494,1761798646235,-303.07947686,0.0002993,2]
[392666495,1761798646245,-303.07947686,0.0002993,2]
[392666496,1761798646254,-500.0,0.00029989,4]
[392666497,1761798646264,-4917.65,0.0003,7]
[392666498,1761798646273,-24577.22156937,0.0003,20]
[392666499,1761798646283,-171.9210094,0.00030049,2]
[392666500,1761798646292,-354.0,0.0003005,7]
[392666501,1761798646301,-196.0,0.00030085,7]
[392666502,1761798646310,-168.0,0.00030098,7]
[392666503,1761798646319,-151.0,0.000301,5]
[392666504,1761798646328,-500.95869344,0.00030116,11]
[392666505,1761798646337,-168.0,0.00030122,2]